Cogmind - Beta 9.4 *** ADVENTURER MODE // 2020.08.06 @ 22:01:04 Player: Scyralis Result: Self-destructed Performance ------------- Evolutions (2) 1000 Regions Visited (5) 1000 Robots Destroyed (18) 90 Value Destroyed (376) 376 Prototype IDs (2) 40 Alien Tech Used (0) 0 Bonus (1238) 1238 TOTAL SCORE: 3744 Bonus ------- High Alert Combat Kills 46 Follower Combat Kills 492 Entered Garrisons 200 Used RIF Installer 500 Cogmind --------- Core Integrity 427/550 Matter 265/300 Energy 220/220 System Corruption 0% Temperature Cool (233) Movement Flying (280) Ox3 Location -8/Materials Parts ------- > --- POWER (2) -------- Light Nuclear Core Light Nuclear Core > --- PROPULSION (3) --- Flight Unit > --- UTILITY (4) ------ Advanced Visual Processing Unit Advanced Sensor Array Relay Coupler [NC] (28) > --- WEAPON (2) ------- Precision Beam Rifle > --- INVENTORY (4) ---- Improved Cooling System Compact Battery (300) Propulsion Shielding Relay Coupler [Grunt] (38) Peak State ------------ > --- POWER ------------ Light Nuclear Core Light Nuclear Core > --- PROPULSION ------- Flight Unit Flight Unit Flight Unit > --- UTILITY ---------- Advanced Weight Redist. System Advanced Visual Processing Unit Advanced Sensor Array Propulsion Shielding > --- WEAPON ----------- Electrolaser Precision Beam Rifle > --- INVENTORY -------- Improved Cooling System ECM Suite Relay Coupler [NC] [Rating: 26] Favorites ----------- Power Light Nuclear Core Engine Light Ion Engine Power Core Light Nuclear Core Propulsion Flight Unit Flight Unit Flight Unit Utility Propulsion Shielding Device Advanced Sensor Array Processor Advanced Visual Processing Unit Hackware Relay Coupler [NC] Protection Propulsion Shielding Weapon Small Laser Energy Gun Small Laser Ballistic Cannon Light Cannon Special Melee Weapon Datajack Build | -11 -10 -9 -8 -8 -8 ------- Run | Scr Mat Mat Mat Gar Mat Slots Evolved 4 | . . 2 2 . . Power 1 | . . . 1 . . Propulsion 1 | . . . 1 . . Utility 2 | . . 2 . . . Weapon . | . . . . . . Parts Attached 38 | 1 6 10 5 10 6 Power 6 | 1 . 2 1 2 . Engine 3 | 1 . 2 . . . Core 3 | . . . 1 2 . Reactor . | . . . . . . Propulsion 10 | . 2 2 . 6 . Treads . | . . . . . . Leg . | . . . . . . Wheel . | . . . . . . Hover . | . . . . . . Flight 10 | . 2 2 . 6 . Utility 12 | . 2 4 2 1 3 Device 6 | . 1 1 2 . 2 Storage . | . . . . . . Processor 2 | . . 1 . 1 . Hackware 1 | . . . . . 1 Protection 3 | . 1 2 . . . Artifact . | . . . . . . Weapon 10 | . 2 2 2 1 3 Energy Gun 8 | . 1 2 1 1 3 Energy Cannon . | . . . . . . Ballistic Gun . | . . . . . . Ballistic Cannon 1 | . 1 . . . . Launcher . | . . . . . . Special Weapon . | . . . . . . Impact Weapon . | . . . . . . Slashing Weapon . | . . . . . . Piercing Weapon . | . . . . . . Special Melee Weapon 1 | . . . 1 . . Unidentified Prototypes 2 | . . 1 . . 1 Parts Lost 9 | . . 3 . 3 3 Power 1 | . . 1 . . . Propulsion 5 | . . 2 . 1 2 Utility 1 | . . . . . 1 Weapon 2 | . . . . 2 . Highest Loss Streak 3 | . . 2 . 3 3 Average Slot Usage (%) 73 | . 43 65 63 87 87 Engine 4 | . 14 10 3 . . Core 9 | . . . 6 15 18 Flight 17 | . 10 16 9 21 25 Device 14 | . 8 11 17 18 17 Processor 5 | . . 4 . 8 9 Protection 8 | . . 11 18 9 4 Energy Gun 8 | . 9 11 6 8 9 Special Melee Weapon 2 | . . . 3 6 . Naked Turns . | . . . . . . Heaviest Build 17 | 3 5 10 13 17 15 Greatest Support 21 | 3 5 14 13 21 21 Greatest Overweight (x) . | . . . . . . Average Overweight (x) . | . . . . . . Largest Inventory Capacity 4 | 4 4 4 4 4 4 Average Capacity 4 | 4 4 4 4 4 4 Most Carried 4 | 1 1 4 4 4 4 Average Carried 2 | . . 1 2 2 3 Final Capacity 4 | 4 4 4 4 4 4 Final Carried 4 | . 1 3 2 4 4 Class Distribution -------------------- 56% | Mutant 43% | Scavenger-Mutant Dominant Class ---------------- Mutant | -10/Materials Mutant | -9/Materials Mutant | -8/Materials Scavenger-Mutant | -8/Garrison Scavenger-Mutant | -8/Materials Resources | -11 -10 -9 -8 -8 -8 ----------- Run | Scr Mat Mat Mat Gar Mat Matter Collected 527 | 179 31 152 55 100 10 Remotely . | . . . . . . Salvage Created 642 | . 25 243 60 149 165 Parts 37 | . 3 16 3 10 5 Haulers Intercepted 2 | . . 1 . . 1 Recyclers Shooed . | . . . . . . Parts Field Recycled . | . . . . . . Retrieved Matter . | . . . . . . Parts Self-Destructed . | . . . . . . Prevented . | . . . . . . Kills | -11 -10 -9 -8 -8 -8 ------- Run | Scr Mat Mat Mat Gar Mat Combat Hostiles Destroyed 13 | . 2 5 1 3 2 Guns 11 | . . 5 1 3 2 Cannons 2 | . 2 . . . . Classes Destroyed 7 | . 1 4 . 1 1 Worker 2 | . . 2 . . . Hauler 2 | . . 1 . . 1 Recycler 1 | . . 1 . . . Swarmer 7 | . 2 4 . 1 . Grunt 4 | . . 1 1 1 1 Duelist 1 | . . . . . 1 Specialist 1 | . . . . 1 . Best Kill Streak 6 | . 2 6 1 1 2 Combat Bots Only 4 | . 2 4 1 1 2 Max Kills in Single Turn 1 | . 1 1 1 1 1 Gunslinging . | . . . . . . Exploded . | . . . . . . Melee . | . . . . . . Uniques/NPCs Destroyed . | . . . . . . Combat | -11 -10 -9 -8 -8 -8 -------- Run | Scr Mat Mat Mat Gar Mat Damage Taken 697 | . 111 137 . 273 176 Core 216 | . 55 38 . 85 38 Absorbed by Shields 23 | . . . . 23 . Core Remaining (%) 89 | 100 78 90 . . . Volleys Fired 112 | . 9 43 6 26 28 Largest 1 | . 1 1 1 1 1 Hottest 65 | . 40 40 55 65 63 Shots Fired 112 | . 9 43 6 26 28 Gun 109 | . 6 43 6 26 28 Cannon 3 | . 3 . . . . Launcher . | . . . . . . Special . | . . . . . . Kinetic 3 | . 3 . . . . Thermal 78 | . 6 43 . 1 28 Explosive . | . . . . . . Electromagnetic 31 | . . . 6 25 . Robot Hit Streak 23 | . 9 23 2 8 12 Robot Miss Streak 2 | . . 1 2 2 1 Penetration Max . | . . . . . . Secondary Targets . | . . . . . . Shots Hit Robots 95 | . 9 39 2 20 25 Core Hits 30 | . 3 14 1 7 5 Critical Hits . | . . . . . . Critical Kills . | . . . . . . Critical Parts Destroyed . | . . . . . . Melee Attacks 7 | . . . 1 6 . Impact . | . . . . . . Slashing . | . . . . . . Piercing . | . . . . . . Sneak Attacks 2 | . . . . 2 . Combat Hostiles . | . . . . . . Follow-up Attacks . | . . . . . . Damage Inflicted 1206 | . 113 463 36 165 429 Guns 1149 | . 56 463 36 165 429 Cannons 57 | . 57 . . . . Explosions . | . . . . . . Melee . | . . . . . . Ramming . | . . . . . . Kinetic 57 | . 57 . . . . Thermal 948 | . 56 463 . . 429 Explosive . | . . . . . . Electromagnetic 201 | . . . 36 165 . Impact . | . . . . . . Slashing . | . . . . . . Piercing . | . . . . . . Highest Corruption . | . . . . . . Average Corruption . | . . . . . . Corruption Purged . | . . . . . . Overload Shots . | . . . . . . Overflow Damage . | . . . . . . Projectiles . | . . . . . . Explosions . | . . . . . . Melee . | . . . . . . Knockbacks . | . . . . . . Impact . | . . . . . . Kinetic . | . . . . . . Secondary . | . . . . . . Self-Inflicted Damage . | . . . . . . Shots . | . . . . . . Rammed . | . . . . . . Targets Rammed . | . . . . . . Kicked . | . . . . . . Crushed . | . . . . . . Highest Temperature 311 | . 23 2 16 130 311 Average Temperature 91 | . 9 1 8 43 154 Received Heat Transfer 228 | . 63 39 . 36 90 Effects 1 | . . . . . 1 Energy Bleed 1 | . . . . . 1 Siege Activations . | . . . . . . Robots Corrupted . | . . . . . . Combat Hostiles . | . . . . . . Parts Fried 1 | . . . . 1 . Impact Corruptions . | . . . . . . Robots Melted . | . . . . . . Combat Hostiles . | . . . . . . Parts Melted . | . . . . . . Heat Transferred 2075 | . 125 1025 . . 925 Parts Sabotaged . | . . . . . . Parts Stolen . | . . . . . . Parts Stripped . | . . . . . . Power Chain Reactions . | . . . . . . Missiles Intercepted . | . . . . . . Alert | -11 -10 -9 -8 -8 -8 ------- Run | Scr Mat Mat Mat Gar Mat Peak Influence 766 | . 105 201 541 766 439 Average Influence 335 | . 57 96 362 576 385 Maximum Alert Level 3 | . . 1 2 3 2 Low Security (%) 39 | 100 100 97 14 . . Level 1 23 | . . 2 57 24 57 Level 2 22 | . . . 27 35 42 Level 3 14 | . . . . 40 . Level 4 . | . . . . . . Level 5 . | . . . . . . High Security . | . . . . . . Max Security . | . . . . . . Squads Dispatched 5 | . 1 . 4 . . Investigation 4 | . 1 . 3 . . Extermination . | . . . . . . Reinforcement 1 | . . . 1 . . Assault . | . . . . . . Garrison . | . . . . . . Intercept . | . . . . . . Construction Impeded . | . . . . . . Haulers Reinforced . | . . . . . . Stealth | -11 -10 -9 -8 -8 -8 --------- Run | Scr Mat Mat Mat Gar Mat Distress Signals 2 | . . 1 1 . . Communications Jammed . | . . . . . . Distress Signals . | . . . . . . Times Spotted 63 | . 10 19 4 25 5 Peak Tracking Total 8 | . 5 8 2 6 3 Tactical Retreats 8 | . 2 2 . 4 . Traps | -11 -10 -9 -8 -8 -8 ------- Run | Scr Mat Mat Mat Gar Mat Traps Triggered 5 | . 1 . . 4 . Indirectly . | . . . . . . Trap Hack Attempts 10 | . . . . 10 . Triggered . | . . . . . . Disarmed . | . . . . . . Reprogrammed 5 | . 4 . . 1 . Reused 1 | . 1 . . . . Traps Extracted . | . . . . . . Installed . | . . . . . . Triggered 1 | . 1 . . . . Machines | -11 -10 -9 -8 -8 -8 ---------- Run | Scr Mat Mat Mat Gar Mat Machines Disabled 1 | . . . 1 . . Max in Single Turn . | . . . . . . Garrison Relay 1 | . . . . 1 . Machines Sabotaged . | . . . . . . Garrisons Compromised . | . . . . . . Overloaded Fab Kills . | . . . . . . Fab Network Shutdowns . | . . . . . . Hacking | -11 -10 -9 -8 -8 -8 --------- Run | Scr Mat Mat Mat Gar Mat Machines Accessed 16 | . 9 3 4 . . Terminals 10 | . 6 3 1 . . Fabricators . | . . . . . . Repair Stations 1 | . 1 . . . . Recycling Units 2 | . 2 . . . . Scanalyzers 2 | . . . 2 . . Garrison Access 1 | . . . 1 . . Total Hacks 48 | . 27 10 11 . . Successful 33 | . 20 5 8 . . Failed 15 | . 7 5 3 . . Catastrophic 1 | . . 1 . . . Database Lockouts . | . . . . . . Manual 24 | . 11 7 6 . . Terminals 34 | . 21 10 3 . . Fabricators . | . . . . . . Repair Stations 4 | . 4 . . . . Recycling Units 2 | . 2 . . . . Scanalyzers 2 | . . . 2 . . Garrison Access 6 | . . . 6 . . Terminal Hacks 17 | . 13 3 1 . . Robot Analysis 4 | . 3 . 1 . . Level Access Points 2 | . 1 1 . . . Branch Access Points 1 | . . 1 . . . Terminal Index 1 | . . 1 . . . Unreport Threat 2 | . 2 . . . . Locate Traps 2 | . 2 . . . . Disarm Traps 1 | . 1 . . . . Reprogram Traps 1 | . 1 . . . . Transport Status 1 | . 1 . . . . Hauler Manifests 1 | . 1 . . . . Zone Layout 1 | . 1 . . . . Fabricator Hacks . | . . . . . . Repair Station Hacks 3 | . 3 . . . . Scan Component 2 | . 2 . . . . Repair 1 | . 1 . . . . Recycling Unit Hacks 2 | . 2 . . . . Retrieve Components 2 | . 2 . . . . Scanalyzer . | . . . . . . Garrison Access Hacks 1 | . . . 1 . . Unlock Access 1 | . . . 1 . . Unauthorized Hacks 20 | . 4 4 12 . . Terminals 4 | . 2 2 . . . Track 2 | . 1 1 . . . Botnet 2 | . 1 1 . . . Fabricators . | . . . . . . Repair Stations . | . . . . . . Recycling Units . | . . . . . . Scanalyzers 2 | . . . 2 . . Extract 2 | . . . 2 . . Garrison Access 4 | . . . 4 . . Reprogram 4 | . . . 4 . . Data Cores Recovered . | . . . . . . Used . | . . . . . . Hacking Detections 11 | . 6 3 2 . . Full Trace Events 3 | . 2 . 1 . . Feedback Events . | . . . . . . Feedback Blocked . | . . . . . . Robot Schematics Acquired . | . . . . . . Robots Built . | . . . . . . Matter . | . . . . . . Time . | . . . . . . Total Robot Build Rating . | . . . . . . Part Schematics Acquired 6 | . . . 6 . . Parts Built . | . . . . . . Matter . | . . . . . . Time . | . . . . . . Total Part Build Rating . | . . . . . . Parts Repaired 1 | . 1 . . . . Time 32 | . 32 . . . . Parts Recycled . | . . . . . . Recycled Matter . | . . . . . . Retrieved Matter . | . . . . . . Retrieved Components 3 | . 3 . . . . Parts Scanalyzed . | . . . . . . Part Schematics Acquired . | . . . . . . Parts Damaged . | . . . . . . Bothacking | -11 -10 -9 -8 -8 -8 ------------ Run | Scr Mat Mat Mat Gar Mat Used RIF Installer 1 | . . . . 1 . Robots Hacked . | . . . . . . Non-combat . | . . . . . . Combat . | . . . . . . Robot Hacks Applied . | . . . . . . Relay Couplers Released 4 | . . . . 4 . Machine Destruction 4 | . . . . 4 . Attached 1 | . . . . . 1 Robots Rewired 2 | . . . . 2 . Allies Hacked . | . . . . . . Hacks Repelled . | . . . . . . Allies | -11 -10 -9 -8 -8 -8 -------- Run | Scr Mat Mat Mat Gar Mat Total Allies 12 | . . . 10 2 . Largest Group 9 | . . . 8 9 1 Highest-Rated Group 159 | . . . 133 159 21 Highest-Rated Ally 21 | . . . 21 21 21 Total Orders . | . . . . . . Ally Attacks 115 | . . . 20 89 6 Total Damage 2027 | . . . 330 1523 174 Kills 27 | . . . 3 22 2 Allies Corrupted . | . . . . . . Allies Melted . | . . . . . . Intel | -11 -10 -9 -8 -8 -8 ------- Run | Scr Mat Mat Mat Gar Mat Robot Analysis Total 4 | . 3 . 1 . . Derelict Logs Recovered . | . . . . . . Drone Launches . | . . . . . . Drone Recoveries . | . . . . . . Exploration | -11 -10 -9 -8 -8 -8 ------------- Run | Scr Mat Mat Mat Gar Mat Turns Passed 1181 | 19 200 230 127 437 168 Spaces Moved 1721 | 31 329 284 167 696 214 Core 76 | 31 35 10 . . . Treads . | . . . . . . Legs . | . . . . . . Wheels . | . . . . . . Hover . | . . . . . . Flight 1645 | . 294 274 167 696 214 Fastest Speed 34 | 50 40 37 40 34 34 Average Speed 37 | 50 41 38 40 35 34 Slowest Speed 50 | 50 50 50 40 40 37 Overloaded Moves . | . . . . . . Propulsion Burnouts . | . . . . . . Robots Hopped 4 | . 1 1 . 2 . Cave-ins Triggered . | . . . . . . Exploration Rate (%) 35 | 4 72 39 11 70 14 Regions Visited 5 Branch Regions . Pre-discovered Areas . | . . . . . . Known Exits Taken 3 | . 1 1 1 . . Unknown Exits Taken 1 | 1 . . . . . Scrap Searched . | . . . . . . Spaces Dug . | . . . . . . Terrain Destroyed . | . . . . . . Melee . | . . . . . . Projectile . | . . . . . . AOE . | . . . . . . Actions | -11 -10 -9 -8 -8 -8 --------- Run | Scr Mat Mat Mat Gar Mat Total 2134 | 34 384 359 221 854 282 Wait 123 | . 34 8 35 24 22 Move 1707 | 30 326 281 166 690 214 Hop 4 | . 1 1 . 2 . Pick Up 44 | 2 6 12 4 14 6 Fast Attach . | . . . . . . Attach 28 | 1 6 8 4 6 3 Detach 1 | . 1 . . . . Swap 10 | . . 2 1 4 3 Drop 23 | 1 1 4 4 7 6 Fire 112 | . 9 43 6 26 28 Melee 7 | . . . 1 6 . Ram . | . . . . . . Kick . | . . . . . . Crush . | . . . . . . Escape Stasis 65 | . . . . 65 . Rewire . | . . . . . . Trap 10 | . . . . 10 . Miscellaneous . | . . . . . . Route ------- -11/Scrapyard -10/Materials (discovered 5 exits: *Mat x3 / [*Min x2]) -9/Materials (discovered 5 exits: *Mat x3 / *Min x2) -8/Materials -8/Garrison (discovered 3 exits: [*Mat x3]) -8/Materials History --------- Turn | Location | Event 2 | -11/Scrapyard | Discovered new exit (range 16) 20 | -11/Scrapyard | Entered Materials 35 | -10/Materials | Identified exit to Materials 103 | -10/Materials | Discovered new exit (range 13) 111 | -10/Materials | Discovered new exit (range 9) 180 | -10/Materials | Repaired VTOL Module 220 | -10/Materials | Entered another Materials area 220 | -9/Materials | Evolved 2 slots: Utility x2 258 | -9/Materials | Discovered new exit (range 12) 302 | -9/Materials | Build established: Mutant 336 | -9/Materials | Discovered new exit (range 14) 406 | -9/Materials | Identified exit to Mines 406 | -9/Materials | Identified exit to Materials 450 | -9/Materials | Entered another Materials area 450 | -8/Materials | Evolved 2 slots: Power x1, Propulsion x1 557 | -8/Materials | Identified exit to Garrison 577 | -8/Materials | Entered Garrison 577 | -8/Garrison | Accompanied by 8 allies 676 | -8/Garrison | Triggered checkpoint 681 | -8/Garrison | Triggered checkpoint 714 | -8/Garrison | Discovered new exit (range 10) 718 | -8/Garrison | Triggered checkpoint 720 | -8/Garrison | Triggered checkpoint 779 | -8/Garrison | Discovered new exit (range 10) 798 | -8/Garrison | Triggered checkpoint 813 | -8/Garrison | Discovered new exit (range 14) 860 | -8/Garrison | Triggered checkpoint 860 | -8/Garrison | Garrison Relay disabled 905 | -8/Garrison | Lost 3 parts (1n2w) 944 | -8/Garrison | Triggered checkpoint 990 | -8/Garrison | Installed Relay Interface Framework 997 | -8/Garrison | Build established: Scavenger-Mutant 1014 | -8/Garrison | Entered Materials 1014 | -8/Materials | Accompanied by 1 ally 1182 | -8/Materials | Self-destructed Last Messages --------------- 01092_ Acquired Com. Battery. 01096_ U-05 Engineer builds a Wall. 01101_ U-05 Engineer lays Concrete. 01102_ T-07 Excavator is excavating. 01103_ U-05 Engineer lays Concrete. 01115_ Commando 3a destroyed. 01116_ G-47 Trooper destroyed. 01117_ K-01 Serf collects debris. 01128_ L-31 Rogue destroyed. 01129_ K-01 Serf collects debris. 01133_ K-01 Serf cleans the Fusion Modulator. 01136_ K-01 Serf collects debris. 01167_ Flight Unit destroyed. 01170_ R-06 Scavenger collects Aluminum Leg. 01172_ Destroyed Lgt. Armor Plating. 01173_ R-06 Scavenger collects Prc. Beam Rifle. 01176_ R-06 Scavenger collects Lgt. Treads. 01178_ Flight Unit destroyed. 01178_ Adv. Weight Redist. System destroyed. 01179_ R-06 Scavenger collects Lgt. Armor Plating. Map ----- +----------------------------------------------------+ | ??#" ## #??????????????????????????? | | ???# """ ## #??????????????????????????? | | ???# """ ## #??????????????????????????? | | ???# """ ## !#??????????????????????????? | | ???# ## #????######????????????????? | | ???# ## #??? ????????????????? | | ???# [[= ## #???""" "" ????????????????? | | ???# [[= ###+#### """ """ #??????????????? | | ???# [== # """ S" #??????????????? | | ???# " """ #??????????????? | | ???# % %! # """ #??????????????? | | ???### #+###### # #??????????????? | | ?????# # # #? ! #??????????????? | | ?????# # ! + #?###### ##??????????????? | | ?????# # !] #### #????????????????????????? | | ?????# # !!] #??# #?########???????????????? | | ?????# # !]! #??# #?# #???????????????? | | ?????# # #??# #?# #???????????????? | | ?????# ########?? ?#?""" #???????????????? | | ?????# #????????? ?# """ #???????????????? | | ?????# #????????# # """ #???????????????? | | ????## ##???????# # #???????????????? | | ????# #################+###########???????? | | ????# %Y [ #???????? | | ????# [ r%!* #???????? | | ????# = ! @ #???????? | | ????# =###+####################+####???????? | | ????######## #?????????????# #???????? | | ???????????# """ #?????????????# """#???????? | | ???????????# """ #?????????????#[ """#???????? | | ???????????# """ #?????????????# """#???????? | | ???????????# """ #?????????????# """#???????? | | ???????????# #?????????????# #???????? | | ???????????# """ #?????????????########???????? | | ???????????# """ #????????????????????????????? | | ???????????# """ #????????????????????????????? | | ???????????# """ #????????????????????????????? | | ???????????# ?#????????????????????????????? | | ???????????# ???????????????????????????????? | | ???????????####???????????????????????????????? | | ??????????????????????????????????????????????? | | ??????????????????????????????????????????????? | | ??????????????????????????????????????????????? | | ??????????????????????????????????????????????? | | ??????????????????????????????????????????????? | | ??????????????????????????????????????????????? | | ??????????????????????????????????????????????? | | ??????????????????????????????????????????????? | | ??????????????????????????????????????????????? | | ??????????????????????????????????????????????? | +----------------------------------------------------+ Best States ------------- Heat Dissipation 31 Energy Generation 23 Energy Capacity 265 Matter Stores 300 Matter Capacity 300 Sight Range 20 Robot Scan Range 16 Terrain Scan Density 10 ECM Strength 1 Additional Mass Support 9 Resistance: KI 20 Resistance: TH 20 Resistance: EX 20 Resistance: EM 20 Resistance: I 20 Resistance: S 20 Resistance: P 20 Core Shielding 20 Propulsion Shielding 33 Evasion (%) 63 Targeting Accuracy 6 Offensive Hacking 10 Item Schematics ----------------- Com. Matter Pod | -8/Materials | Extracted Lgt. Nuclear Core | -8/Materials | Extracted Arm. Treads | -8/Materials | Extracted Lgt. Treads | -8/Materials | Extracted Assault Cannon | -8/Materials | Extracted Adv. Terrain Scanner | -8/Materials | Extracted Robot Schematics ------------------ None Fabricated ------------ Nothing Alien Tech Used ----------------- None Achievements -------------- None Challenges ------------ None Game ------ Seed ImpulseImpulseElectrolaser Manual? 0 Play Time 00:21:13 Cumulative 240.4 hours Start 2020.08.06 @ 21:42:25 End 2020.08.06 @ 22:01:04 Sessions 1 Manual Loads 0 Difficulty Adventurer Special Mode None Game No. 100 Rogue 1 Adventurer 99 Explorer 0 Win Type - Total 1 Types 1/0/0/0/0/0/0 Lore% 33 Gallery% 59 Achievement% 44 Wizard Run 0 Options --------- ASCII 0 Keyboard 0 Movement Numpad Keybinds 0 Fullscreen 0 Font 12/Smallcaps Map View 83x54 Tactical HUD 1 Map Filters NONE Filters NONE Steam X RUN: fd1ecb59-bb6c-4479-9418-11ee9e4bf806